{"text_format":"1","workbook":"xlsx","n_sheets":2,"sheets":["пример","решение с форума Покупки 1"],"not_rendered":{"charts":0,"images":2,"macros":1,"external_links":1,"defined_names":2,"comments":0,"pivot_tables":0},"unopened":[],"bounds":{"document_bytes":16777216,"sheet_cells":100000,"rows_first":2000,"rows_last":500,"rows_between":2000,"halvings":0,"cell_chars":16384,"cell_head_chars":4096},"cells_cut":0,"cells_raw":0,"read":"whole","date_system":"1900"}

{"sheet":"пример","index":0,"n_rows":36,"n_cols":9,"rows_kept":36,"cut":false,"hidden":false,"merged":[[8,4,8,6],[27,4,27,6]]}
[]
[]
[]
[]
[]
[null,null,"БРАК","Фильтр","Наименование","Размер, мм.","Вес, кг.","Цена закупки ед., руб."]
[]
["заголовок",null,null,null,"Кирпич",null,null,null," "]
["заголовок",null,1.05,null,"Огнеупорный кирпич (изделия общего назначения марки ША,ШБ)",null,null,"кнопка отображает/скрывает по фильтру \"кирпич\""]
["кирпич",null,1.05,"кирпич","Кирпич огнеупорный прямой ША-8  Боровичи, 297","250х124х65",3.9,38.180499999999995]
["кирпич",null,{"$f":"$C$7","v":0},"кирпич","Кирпич огнеупорный прямой ША-5  Боровичи, 330","230х114х65 ",3.9,34.456499999999998]
["кирпич",null,0,"кирпич","Кирпич огнеупорный прямой ША-6 Боровичи, 630","230х114х40",3.9,29.877499999999998]
["кирпич",null,0,"кирпич","Кирпич огнеупорный клиновой ША-47  Боровичи, 324","250х124х65/55",3.9,42.294000000000004]
["кирпич",null,1,"кирпич","Кирпич огнеупорный клиновой ША-48  Боровичи, 324","250х124х45",3.9]
["кирпич",null,1,null,"Кирпич огнеупорный ша-96 боровичи","600х230х90",null,471.4]
["кирпич",null,0,"кирпич","Кирпич огнеупорный ША-94 плита  Боровичи, 70","460х230х75",3.9,293.73999999999995]
["заголовок",null,null,null,"Итого по огнеупорному кирпичу:",null,null,null,{"$f":"SUM(I10:I16)","v":0}]
["кирпич",null,1.1499999999999999,null,"Керамический полнотелый рядовой кирпич (для печей и каминов)"]
["кирпич",null,1.05,null,"Кирпич полнотелый М-200 Витебск цех №1 330","250х120х65",3.8,17.2805]
["кирпич",null,{"$f":"$C$16","v":0},null,"Кирпич полнотелый М-250 Боровичи (с фаской) 400","250х120х65",3.7,17.470500000000001]
["заголовок",null,null,null,"Итого по рядовому кирпичу:",null,null,null,{"$f":"SUM(I19:I20)","v":0}]
["кирпич"]
["кирпич",null,null,"Janka","ЛИЦЕВОЙ КИРПИЧ ПОЛНОТЕЛЫЙ"]
["кирпич",null,1.02,"Janka","Название кирипича, цвет, поверхность, марка, количество в поддоне"]
["кирпич",null,null,null,"Строки  и столбцы могут добавляться","250х120х65",3.8,17.2805]
["заголовок",null,null,"DaaS","Итого по облицовочному кирпичу:"]
["заголовок",null,null,null,"Итого по кирпичу:"]
["заголовок",null,null,"смесь","Смеси для кладки и ремонта печей и каминов",null,null,"кнопка отображает/скрывает по фильтру \"смесь\""]
["смесь",null,1]
["смесь",null,1,"смесь","Смесь глино-песчаная Кострома (на дымоход)",null,25,296,{"$f":"SUM([1]Расчет!D32:D33)/50","v":0}]
["смесь",null,1]
["смесь",null,1,null,"Смесь песчаноцементная М-200, стяжка",null,40,150]
["смесь",null,1,null,"Смесь песчаноцементная М-300, стяжка",null,40,150]
["смесь",null,1]
["заголовок",null,1,null,"Итого по смесям:",null,null,null,{"$f":"SUM(I29:I34)","v":0}]
["заголовок",null,1,null,"Итого по смесям и кирпичу:",null,null,null,{"$f":"I35+I27","v":0}]

{"sheet":"решение с форума Покупки 1","index":1,"n_rows":16,"n_cols":10,"rows_kept":16,"cut":false,"hidden":false,"merged":[]}
["Отображение типов:",null,"Мебель","+",null,"Отображение подтипов",null,null,"Компьютеры","-"]
[null,null,"Техника","-",null,null,null,null,"Оргтехника","-"]
[]
[null,null,null,null,"Покупки 1"]
["Наименование","Тип","Подтип","Цена","Кол-во","Стоимость"]
["Кресло","Мебель",null,70,1,{"$f":"D6*E6","v":70}]
["Стол","Мебель",null,200,5,1000]
["Стул","Мебель",null,30,4,120]
["Шкаф","Мебель",null,100,2,200]
["Клавиатура","Техника","Компьютеры",10,5,50]
["Монитор","Техника","Компьютеры",100,5,500]
["Мышь","Техника","Компьютеры",5,5,25]
["Принтер","Техника","Оргтехника",350,1,350]
["Системный Блок","Техника","Компьютеры",400,5,2000]
["Сканер","Техника","Оргтехника",50,1,50]
["Телефонный аппарат","Техника","Оргтехника",25,5,125]